{"text_format":"1","workbook":"xlsx","n_sheets":2,"sheets":["Лист1","Лист2"],"not_rendered":{"charts":0,"images":0,"macros":0,"external_links":0,"defined_names":1,"comments":0,"pivot_tables":1},"unopened":[],"bounds":{"document_bytes":16777216,"sheet_cells":100000,"rows_first":2000,"rows_last":500,"rows_between":2000,"halvings":0,"cell_chars":16384,"cell_head_chars":4096},"cells_cut":0,"cells_raw":0,"read":"whole","date_system":"1900"}

{"sheet":"Лист1","index":0,"n_rows":206,"n_cols":16,"rows_kept":206,"cut":false,"hidden":false,"merged":[[14,11,14,15],[0,1,1,2],[0,5,1,6],[6,5,6,10],[7,5,7,8],[7,9,7,10],[14,7,14,10]]}
[null,"Система оценки",null,null,null,"Количество бюджетных мест"]
[]
[]
[null,5,100,null,null,"Дизайн",24]
[null,"5-",95,null,null,"Живопись",24]
[null,"4+",90]
[null,4,85,null,null,"Статистика"]
[null,"4-",80,null,null,"Количество поданных заявлений",null,null,null,"Текущий конкурс"]
[null,"3+",75,null,null,"Дизайн:",{"$f":"COUNTIF(F17:F998,\"*дизайн*\")","v":112},"1 поток:",{"$f":"COUNTIF(C$17:C998,\"1\")","v":135},{"$f":"G9/G4","v":4.666666666666667},"чел./место"]
[null,3,70,null,null,"Живопись:",{"$f":"COUNTIF(F17:F998,\"*живопись*\")","v":78},"2 поток:",{"$f":"COUNTIF(C$17:C998,\"2\")","v":40},{"$f":"G10/G5","v":3.25},"чел./место"]
[null,"3-",65,null,null,"Всего:",{"$f":"G10+G9","v":190},"Всего:",{"$f":"I9+I10","v":175},{"$f":"G11/(G4+G5)","v":3.9583333333333335},"чел./место"]
[null,2,60]
[null,0,0]
[]
[null,null,null,null,null,null,null," Оценки по специальным предметам",null,null,null,"Рейтинг"]
[null,"№ п/п","№ по-тока","№ экз. листа","ФИО","Основная специальность","Доп. специальность","Оценка рисунок","Оценка живопись","Оценка композиция","Оценка ОПК","Рейтинг рисунок","Рейтинг живопись","Рейтинг композиция","Рейтинг ОПК","Общий рейтинг"]
[null,1,1,1,"Сысоева Светлана Алексеевна","Дизайн",null,2,2,2,3,{"$f":"VLOOKUP(H17,$B$4:$C$13,2,0)","v":60},{"$f":"VLOOKUP(I17,$B$4:$C$13,2,0)","v":60},60,70,{"$f":"IF(F17=\"Живопись\",SUM(L17:N17),SUM(L17:O17))","v":250}]
[null,2,1,2,"Голубев Виктор Григорьевич","Живопись",null,4,4,4,null,{"$f":"VLOOKUP(H18,$B$4:$C$13,2,0)","v":85},{"$f":"VLOOKUP(I18,$B$4:$C$13,2,0)","v":85},{"$f":"VLOOKUP(J18,$B$4:$C$13,2,0)","v":85},{"$f":"VLOOKUP(K18,$B$4:$C$13,2,0)","v":0},{"$f":"IF(F18=\"Живопись\",SUM(L18:N18),SUM(L18:O18))","v":255}]
[null,3,1,3,"Купченко Валерия Сергеевна","Живопись","Дизайн","4-",4,"4-",4,80,85,80,85,245]
[null,4,1,4,"Щербакова Надежда Анатольевна","Дизайн","Живопись","4-","3+","4-",5,80,75,80,100,335]
[null,5,1,5,"Сапрыкина Ксения Дмитриевна","Дизайн",null,"4-","4-",3,4,80,80,70,85,315]
[null,6,1,6,"Юзупкина Екатерина Дмитриевна","Дизайн","Живопись","4-","3+",3,4,80,75,70,85,310]
[null,7,1,7,"Вакар Екатерина Петровна","Дизайн","Живопись",2,2,2,3,60,60,60,70,250]
[null,8,"неявка",8,"Спиридонова Марина Олеговна","Живопись",null,null,null,null,null,0,0,0,0,0]
[null,9,1,9,"Данилова Александра Михайловна","Живопись",null,"4-",4,5,null,80,85,100,0,265]
[null,10,"неявка",10,"Крякина Светлана Андреевна","Живопись",null,null,null,null,null,0,0,0,0,0]
[null,11,1,11,"Дудко Дарья Вячеславовна","Живопись",null,"3+",3,"3-",null,75,70,65,0,210]
[null,12,1,12,"Калинич Екатерина Геннадьевна","Живопись",null,"3-",2,2,null,65,60,60,0,185]
[null,13,1,13,"Шмигирева Елизавета Сергеевна","Дизайн",null,"4+",5,4,5,90,100,85,100,375]
[null,14,1,14,"Меркулова Оксана Сергеевна","Живопись",null,2,2,"3+",null,60,60,75,0,195]
[null,15,1,15,"Лушникова Диана Вадимовна","Дизайн",null,3,"4-","4-","4+",70,80,80,90,320]
[null,16,1,16,"Хачко Ольга Игоревна","Дизайн",null,"3+",3,3,"4-",75,70,70,80,295]
[null,17,1,17,"Ежкова Елизавета Павловна","Живопись","Дизайн",3,3,2,4,70,70,60,85,200]
[null,18,1,18,"Гайдук Александра Валерьевна","Живопись","Дизайн",4,4,4,4,85,85,85,85,255]
[null,19,1,19,"Черновский Антон Борисович","Дизайн",null,"4-",4,3,3,80,85,70,70,305]
[null,20,1,20,"Иванова Анастасия Дмитриевна","Живопись",null,3,4,3,null,70,85,70,0,225]
[null,21,1,21,"Чуева Валерия Евгеньевна","Живопись",null,"4-","4-","4-",null,80,80,80,0,240]
[null,22,1,22,"Никитенко Дарья Алесандровна","Живопись","Дизайн",3,3,3,"4-",70,70,70,80,210]
[null,23,1,23,"Личманова Юлия Вячеславовна","Дизайн",null,4,3,3,"4+",85,70,70,90,315]
[null,24,1,24,"Сорокина Анастасия Дмитриевна","Дизайн",null,"3-",2,2,2,65,60,60,60,245]
[null,25,2,25,"Белимова Полина Алексеевна","Живопись",null,null,null,null,null,0,0,0,0,0]
[null,26,1,26,"Кунц Милослава Юрьевна","Дизайн",null,4,4,"4-","4-",85,85,80,80,330]
[null,27,"неявка",27,"Гайнутдинов Сергей Андреевич","Дизайн",null,null,null,null,null,0,0,0,0,0]
[null,28,1,28,"Волкова Дарья Алексеевна","Живопись",null,2,"3-",2,null,60,65,60,0,185]
[null,29,1,29,"Тур Анастасия Витальевна","Дизайн","Живопись","3-","3-",2,3,65,65,60,70,260]
[null,30,1,30,"Герус Виталина Дмитриевна","Дизайн","Живопись","3-",3,3,3,65,70,70,70,275]
[null,31,1,31,"Дайнеко Анастасия Олеговна","Живопись","Дизайн",3,"3+",3,"4-",70,75,70,80,215]
[null,32,"неявка",32,"Ермолаева Мария Александровна","Живопись","Дизайн",null,null,null,null,0,0,0,0,0]
[null,33,1,33,"Завгородняя Дарья Андреевна","Дизайн",null,3,3,3,"4+",70,70,70,90,300]
[null,34,1,34,"Ряполова Екатерина Евгеньевна","Дизайн","Живопись","3+","4-","4-",4,75,80,80,85,320]
[null,35,1,35,"Миронова Дарья Евгеньевна","Дизайн",null,"4-","4+",5,"5-",80,90,100,95,365]
[null,36,1,36,"Азаревич Полина Романовна","Дизайн",null,3,"3+",3,4,70,75,70,85,300]
[null,37,1,37,"Калиева Дина Руслановна","Живопись","Дизайн",4,3,"3-",4,85,70,65,85,220]
[null,38,1,38,"Кузьминых Кристина Андреевна","Дизайн",null,4,4,4,5,85,85,85,100,355]
[null,39,"неявка",39,"Клименкова Любовь Андреевна","Живопись","Дизайн",null,null,null,null,0,0,0,0,0]
[null,40,1,40,"Пышенко Валерия Олеговна","Живопись",null,"4+","4+",4,null,90,90,85,0,265]
[null,41,1,41,"Чернова Анита Константиновна","Живопись","Дизайн","4-","4-",4,4,80,80,85,85,245]
[null,42,"неявка",43,"Кончева Диана Романовна","Дизайн",null,null,null,null,null,0,0,0,0,0]
[null,43,1,44,"Лысенко Ольга Олеговна","Живопись","Дизайн",3,"4+",4,4,70,90,85,85,245]
[null,44,"неявка",45,"Обухова Маргарита Дмитриевна","Дизайн","Живопись",null,null,null,null,0,0,0,0,0]
[null,45,1,46,"Калугина Арина Геннадьевна","Дизайн",null,2,"3-","3-",3,60,65,65,70,260]
[null,46,1,47,"Евдокименко Анастасия Сергеевна","Живопись","Дизайн",3,3,3,3,70,70,70,70,210]
[null,47,1,48,"Индан Дарья Евгеньевна","Живопись",null,"4+","5-","4+",null,90,95,90,0,275]
[null,48,"неявка",49,"Дробышева Анастасия Андреевна","Дизайн",null,null,null,null,null,0,0,0,0,0]
[null,49,1,50,"Назарова Мария Евгеньевна","Живопись","Дизайн","3+",3,"3-","3+",75,70,65,75,210]
[null,50,1,51,"Шульдякова Наталья Сергеевна","Живопись","Дизайн",3,"4-","3+","4-",70,80,75,80,225]
[null,51,1,52,"Пикалова Валерия Александровна","Живопись","Дизайн","4-",4,4,4,80,85,85,85,250]
[null,52,1,53,"Василенко Татьяна Владимировна","Дизайн",null,"3+","4-",4,"4-",75,80,85,80,320]
[null,53,1,54,"Костина Арина Сергеевна","Живопись","Дизайн",4,"4-","4-","4-",85,80,80,80,245]
[null,54,2,55,"Дунаева Анастасия Сергеевна","Дизайн","Живопись",null,null,null,null,0,0,0,0,0]
[null,55,1,56,"Алмакаев Никита Алексеевич","Дизайн",null,3,3,3,4,70,70,70,85,295]
[null,56,1,57,"Лубашева Вероника Вадимовна","Дизайн",null,"3-",4,"3-",4,65,85,65,85,300]
[null,57,1,58,"Овсянникова Вероника Игоревна","Живопись",null,"4-",4,4,null,80,85,85,0,250]
[null,58,1,59,"Серова Арина Романовна","Живопись",null,3,"4-","4-",null,70,80,80,0,230]
[null,59,1,60,"Стадник Кристина Анатольевна","Живопись","Дизайн",3,4,4,null,70,85,85,0,240]
[null,60,1,61,"Елисеева Алина Сергеевна","Живопись","Дизайн",3,"4-","3-","4-",70,80,65,80,215]
[null,61,1,62,"Милованова Екатерина Ивановна","Живопись","Дизайн","4+",4,4,4,90,85,85,85,260]
[null,62,1,63,"Кравцова Юлия Дмитриевна","Живопись","Дизайн",4,4,4,"4-",85,85,85,80,255]
[null,63,1,64,"Козырева Анжелика Алексеевна","Живопись",null,3,"3-",2,null,70,65,60,0,195]
[null,64,1,65,"Лазарева Антонина Андреевна","Дизайн","Живопись","3+","5-",4,"4-",75,95,85,80,335]
[null,65,1,66,"Кашина Наталья Сергеевна","Живопись","Дизайн",4,"4+","4-",5,85,90,80,100,255]
[null,66,1,67,"Заболотнев Владислав Геннадьевич","Живопись","Дизайн","4+",4,4,4,{"$f":"VLOOKUP(H82,$B$4:$C$13,2,0)","v":90},{"$f":"VLOOKUP(I82,$B$4:$C$13,2,0)","v":85},{"$f":"VLOOKUP(J82,$B$4:$C$13,2,0)","v":85},{"$f":"VLOOKUP(K82,$B$4:$C$13,2,0)","v":85},{"$f":"IF(F82=\"Живопись\",SUM(L82:N82),SUM(L82:O82))","v":260}]
[null,67,1,68,"Булатова Екатерина Константиновна","Живопись",null,4,"4+",4,null,85,90,85,0,260]
[null,68,1,69,"Сапунова Мария Сергеевна","Живопись","Дизайн","4+",5,"4+","5-",90,100,90,95,280]
[null,69,1,70,"Стецык Оксана Сергеевна","Дизайн",null,3,"3-","3-","4-",70,65,65,80,280]
[null,70,1,71,"Петухова Полина Дмитриевна","Дизайн",null,4,"4+","4-",5,85,90,80,100,355]
[null,71,1,72,"Калмыков Дмитрий Васильевич","Дизайн",null,"4+","4+","3+","4-",90,90,75,80,335]
[null,72,"неявка",73,"Давронова Зарина Абчадовна","Дизайн",null,null,null,null,null,0,0,0,0,0]
[null,73,1,74,"Худорожкова Алина Андреевна","Живопись","Дизайн","3+","3-",2,3,75,65,60,70,200]
[null,74,1,75,"Филипченко Олеся Владимировна","Дизайн","Живопись",4,4,"4-",4,85,85,80,85,335]
[null,75,1,77,"Клиновая Анастасия Александровна","Живопись",null,"4+",4,4,null,90,85,85,0,260]
[null,76,1,78,"Белых Алена Алексеевна","Живопись",null,"4-","4+","4+",null,80,90,90,0,260]
[null,77,1,79,"Томилко Валерия Евгеньевна","Дизайн","Живопись","4-","3+","4+",4,80,75,90,85,330]
[null,78,1,80,"Лазарева Снежана Валерьевна","Дизайн","Живопись","5-","4+",5,5,95,90,100,100,385]
[null,79,1,81,"Николаевская Дарья Аркадьевна","Дизайн","Живопись","4-","4-","4+",4,80,80,90,85,335]
[null,80,1,82,"Крюкова Мария Александровна","Дизайн",null,"3+",3,"3-",4,75,70,65,85,295]
[null,81,1,83,"Яковчук Ульяна Дмитриевна","Живопись",null,"4-",4,4,null,80,85,85,0,250]
[null,82,1,84,"Никифоровская Ксения Алексеевна","Дизайн",null,2,3,2,"3-",60,70,60,65,255]
[null,83,1,85,"Балашова Дарья Игоревна","Дизайн",null,3,3,"3-",4,70,70,65,85,290]
[null,84,1,86,"Карева Юлия Сергеевна","Живопись","Дизайн",4,"4+",4,"4+",85,90,85,90,260]
[null,85,1,87,"Горлушко Юлия Алексеевна","Дизайн",null,"3-",4,3,3,65,85,70,70,290]
[null,86,1,88,"Чуруксаева Ирина Степановна","Дизайн",null,4,3,"3-",4,85,70,65,85,305]
[null,87,1,89,"Фролов Михаил Сергеевич","Дизайн",null,"3-",3,2,3,65,70,60,70,265]
[null,88,1,90,"Галкина Дарья Ильинична","Дизайн",null,3,2,2,3,70,60,60,70,260]
[null,89,1,91,"Капырина Дарья Сергеевна","Дизайн","Живопись","3+","4-",3,"3+",75,80,70,75,300]
[null,90,1,92,"Рыжевалова Наталья Олеговна","Дизайн",null,4,"5-",4,5,85,95,85,100,365]
[null,91,1,93,"Тимошенко Кристина Юрьевна","Живопись","Дизайн","4-",4,"4+","4+",80,85,90,90,255]
[null,92,1,94,"Данилова Арина Владиславовна","Дизайн",null,"3-",2,2,2,65,60,60,60,245]
[null,93,1,95,"Левкина Александра Александровна","Дизайн","Живопись","3-",3,4,3,65,70,85,70,290]
[null,94,1,96,"Сергеева Анастасия Дмитриевна","Дизайн","Живопись",3,"4-",4,"4-",70,80,85,80,315]
[null,95,1,97,"Дмитриева Любовь Эдуардовна","Дизайн",null,"4-","4+","4+",5,80,90,90,100,360]
[null,96,1,98,"Виноградова Светлана Вячеславовна","Дизайн",null,3,3,3,3,70,70,70,70,280]
[null,97,1,99,"Виноградова Татьяна Вячеславовна","Дизайн",null,3,"3-","3-",3,70,65,65,70,270]
[null,98,1,100,"Стукалова Олеся Сергеевна","Дизайн","Живопись",2,"3-",2,2,60,65,60,60,245]
[null,99,1,101,"Пудлова Анжелика Алексеевна","Живопись","Дизайн","4-",4,"4-",3,80,85,80,70,245]
[null,100,1,102,"Дмитриев Артем Сергеевич","Живопись",null,2,2,2,null,60,60,60,0,180]
[null,101,1,103,"Рогаль Евгения Владимировна","Дизайн","Живопись",2,2,2,2,60,60,60,60,240]
[null,102,1,104,"Залепаев Вадим Дмитриевич","Дизайн","Живопись","4-","3+","4-",3,80,75,80,70,305]
[null,103,1,105,"Ларина Наталья Алексеевна","Дизайн","Живопись","3+","4-",3,4,75,80,70,85,310]
[null,104,1,106,"Затолокин Евгений Владимирович","Дизайн","Живопись",4,"4-","4-","4-",85,80,80,80,325]
[null,105,1,107,"Барщ Артем Владимирович","Дизайн","Живопись",3,4,"4-",5,70,85,80,100,335]
[null,106,"неявка",108,"Волкова Ольга Андреевна","Дизайн",null,null,null,null,null,0,0,0,0,0]
[null,107,2,109,"Макуха Мария Николаевна","Дизайн",null,null,null,null,null,0,0,0,0,0]
[null,108,1,110,"Трубачева Кристина Александровна","Живопись","Дизайн",3,"3+",2,null,70,75,60,0,205]
[null,109,1,111,"Горло Виктория Павловна","Живопись",null,"4-","4-",4,null,80,80,85,0,245]
[null,110,1,112,"Наумова Регина Константиновна","Дизайн",null,3,"3+",3,3,70,75,70,70,285]
[null,111,1,113,"Коваленко Екатерина Анатольевна","Дизайн","Живопись",3,3,"3+",4,70,70,75,85,300]
[null,112,1,114,"Тарасова Анастасия Владимировна","Дизайн","Живопись",2,"3-",2,2,60,65,60,60,245]
[null,113,1,115,"Воевода Дарья Андреевна","Дизайн","Живопись",3,3,"3-",4,70,70,65,85,290]
[null,114,1,116,"Сомова Анастасия Олеговна","Живопись","Дизайн","4-",3,3,3,80,70,70,70,220]
[null,115,1,117,"Дереева Анна Олеговна","Живопись","Дизайн","4-","4-",4,"4-",80,80,85,80,245]
[null,116,1,118,"Рябов Вячеслав Сергеевич","Дизайн","Живопись",4,"3+",4,4,85,75,85,85,330]
[null,117,1,119,"Петренко Ксения Денисовна","Живопись",null,"4-","4-",4,null,80,80,85,0,245]
[null,118,1,120,"Киктева Юлия Владимировна","Дизайн","Живопись","3+",3,3,3,75,70,70,70,285]
[null,119,1,121,"Варданян Рузанна Геворговна","Дизайн",null,4,4,"4-",4,85,85,80,85,335]
[null,120,1,122,"Огнева Елена Александровна","Живопись",null,"4-",5,5,null,80,100,100,0,280]
[null,121,1,123,"Каргина Оксана Александровна","Живопись",null,2,3,2,null,60,70,60,0,190]
[null,122,1,124,"Егошина Устина Сергеевна","Дизайн",null,2,"3-",2,3,60,65,60,70,255]
[null,123,2,125,"Шайдулина Алена Эльбрусовна","Дизайн",null,null,null,null,null,0,0,0,0,0]
[null,124,"неявка",126,"Петухова Юлия Борисовна","Дизайн",null,null,null,null,null,0,0,0,0,0]
[null,125,1,127,"Болдарева Ирина Александровна","Живопись",null,"4-","5-","4-",null,80,95,80,0,255]
[null,126,1,128,"Аушева Юлия Александровна","Живопись",null,3,3,"3-",null,70,70,65,0,205]
[null,127,1,129,"Денисов Никита Андреевич","Дизайн",null,"3-",3,"3+","4-",65,70,75,80,290]
[null,128,1,130,"Грыдина Юлия Сергеевна","Живопись",null,"3+","4-","3-",null,75,80,65,0,220]
[null,129,1,131,"Гаврилова Наталья Евгеньевна","Живопись","Дизайн",4,4,"4+",4,85,85,90,85,260]
[null,130,2,132,"Андерс Валерия Юрьевна","Дизайн","Живопись",null,null,null,null,{"$f":"VLOOKUP(H146,$B$4:$C$13,2,0)","v":0},{"$f":"VLOOKUP(I146,$B$4:$C$13,2,0)","v":0},{"$f":"VLOOKUP(J146,$B$4:$C$13,2,0)","v":0},{"$f":"VLOOKUP(K146,$B$4:$C$13,2,0)","v":0},{"$f":"IF(F146=\"Живопись\",SUM(L146:N146),SUM(L146:O146))","v":0}]
[null,131,1,133,"Флягина Анна Юрьевна","Живопись","Дизайн","4-","4-",3,3,80,80,70,70,230]
[null,132,1,134,"Латыпова Ангелина Витальевна","Дизайн",null,"4-","4-",3,4,80,80,70,85,315]
[null,133,1,135,"Косенко Анастасия Олеговна","Дизайн",null,4,"4-",4,4,85,80,85,85,335]
[null,134,1,136,"Садковская Алина Игоревна","Дизайн",null,2,"3-",null,null,60,65,0,0,125]
[null,135,1,137,"Пивоварова Александра Георгиевна","Живопись",null,4,4,"4-",null,85,85,80,0,250]
[null,136,1,138,"Демидюк Яна Валериевна","Дизайн","Живопись","4-",3,"4-",4,80,70,80,85,315]
[null,137,1,139,"Горева Надежда Александровна","Дизайн","Живопись","4-",4,3,3,80,85,70,70,305]
[null,138,"неявка",140,"Шадрина Алина Дмитриевна","Дизайн",null,null,null,null,null,0,0,0,0,0]
[null,139,1,141,"Королева Татьяна Юрьевна","Живопись","Дизайн","3+",3,3,null,75,70,70,0,215]
[null,140,1,142,"Юкляевская Мария Михайловна","Дизайн",null,2,2,2,"3-",60,60,60,65,245]
[null,141,1,143,"Аполихина Александра Дмитриевна","Живопись",null,"5-",4,4,null,95,85,85,0,265]
[null,142,"неявка",144,"Малышева Алина Дмитриевна","Дизайн",null,null,null,null,null,0,0,0,0,0]
[null,143,"неявка",145,"Другова Маргарита Сергеевна","Дизайн","Живопись",null,null,null,null,0,0,0,0,0]
[null,144,1,146,"Бакунова Вера Евгеньевна","Живопись","Дизайн",4,4,"5-",4,85,85,95,85,265]
[null,145,1,147,"Шмидт Милана Аделвахетиковна","Дизайн",null,4,5,"5-",4,85,100,95,85,365]
[null,146,1,148,"Войцехович Яна Игоревна","Дизайн",null,"3-",2,2,3,65,60,60,70,255]
[null,147,1,149,"Киселева Анна Сергеевна","Дизайн",null,3,3,3,3,70,70,70,70,280]
[null,148,"неявка",150,"Кондратенко Антон Вадимович","Дизайн",null,null,null,null,null,0,0,0,0,0]
[null,149,1,151,"Попкова Дарья Дмитриевна","Живопись","Дизайн",4,4,4,3,85,85,85,70,255]
[null,150,1,152,"Успенская Анна Евгеньевна","Живопись",null,"3-",3,"3-",null,65,70,65,0,200]
[null,151,1,153,"Трифоненко Анастасия Евгеньевна","Живопись",null,"4-","3+",3,null,80,75,70,0,225]
[null,152,1,154,"Скоробогатова Ксения Руслановна","Дизайн",null,"3-","3-",3,"4-",65,65,70,80,280]
[null,153,1,155,"Прокина Галина Алексеевна","Живопись",null,"3+",4,"4-",null,75,85,80,0,240]
[null,154,1,156,"Даргат Дарина Мадыр-ооловна","Живопись",null,"3-","3-","3-",null,65,65,65,0,195]
[null,155,1,157,"Басалаева Кристина Олеговна","Живопись","Дизайн","4-","4-",4,"4-",80,80,85,80,245]
[null,156,2,158,"Чепурнова Кристина Витальевна","Дизайн",null,null,null,null,null,0,0,0,0,0]
[null,157,2,159,"Черных Александра Григорьевна","Дизайн",null,null,null,null,null,0,0,0,0,0]
[null,158,2,160,"Иванова Елизавета Сергеевна","Дизайн",null,null,null,null,null,0,0,0,0,0]
[null,159,2,161,"Кузнецов Василий Владимирович","Живопись","Дизайн",null,null,null,null,0,0,0,0,0]
[null,160,2,162,"Саженова Анастасия Викторовна","Дизайн",null,null,null,null,null,0,0,0,0,0]
[null,161,2,163,"Ращепкин Артём Алексеевич","Живопись",null,null,null,null,null,0,0,0,0,0]
[null,162,2,164,"Герасимова Анна Алексеевна","Дизайн","Живопись",null,null,null,null,0,0,0,0,0]
[null,163,2,165,"Цуранов Денис Андреевич","Дизайн",null,null,null,null,null,0,0,0,0,0]
[null,164,2,166,"Фёдорова Злата Сергеевна","Дизайн",null,null,null,null,null,0,0,0,0,0]
[null,165,2,168,"Хромова Жанна Александровна","Живопись","Дизайн",null,null,null,null,0,0,0,0,0]
[null,166,2,169,"Шадрин Валерий Сергеевич","Дизайн","Живопись",null,null,null,null,0,0,0,0,0]
[null,167,2,170,"Анискина Наталья Алексеевна","Дизайн",null,null,null,null,null,0,0,0,0,0]
[null,168,2,171,"Погодяева Анастасия Сергеевна","Дизайн",null,null,null,null,null,0,0,0,0,0]
[null,169,2,172,"Журавлёва Анастасия Сергкквна","Дизайн",null,null,null,null,null,0,0,0,0,0]
[null,170,2,173,"Неганова Дарья Сергеевна","Дизайн",null,null,null,null,null,0,0,0,0,0]
[null,171,2,174,"Шепелева Екатерина Леонидовна","Живопись",null,null,null,null,null,0,0,0,0,0]
[null,172,2,175,"Шавырина Арина Сергеевна","Дизайн","Живопись",null,null,null,null,0,0,0,0,0]
[null,173,2,176,"Клиз Юлия Романовна","Живопись",null,null,null,null,null,0,0,0,0,0]
[null,174,2,177,"Литвинова Ектерина Андреевна","Дизайн","Живопись",null,null,null,null,0,0,0,0,0]
[null,175,2,178,"Рыбаков Артём Константинович","Дизайн",null,null,null,null,null,0,0,0,0,0]
[null,176,2,179,"Золотарёва Анастасия Васильевна","Дизайн","Живопись",null,null,null,null,0,0,0,0,0]
[null,177,2,180,"Щербак Юлия Александровна","Дизайн",null,null,null,null,null,0,0,0,0,0]
[null,178,2,181,"Мошегова Мария Владимировна","Дизайн",null,null,null,null,null,0,0,0,0,0]
[null,179,2,182,"Усольцева Алина Сергеевна","Живопись",null,null,null,null,null,0,0,0,0,0]
[null,180,2,183,"Ичетовкина Наталья Михайловна","Дизайн",null,null,null,null,null,0,0,0,0,0]
[null,181,2,184,"Агмадиани Лиана Омаровна","Дизайн",null,null,null,null,null,0,0,0,0,0]
[null,182,2,185,"Денисов Иван Романович","Дизайн",null,null,null,null,null,0,0,0,0,0]
[null,183,2,186,"Черечеча Дарья Сергеевна","Дизайн","живопись",null,null,null,null,0,0,0,0,0]
[null,184,2,187,"Савкина Екатерина Дмитриевна","Дизайн",null,null,null,null,null,0,0,0,0,0]
[null,185,2,188,"Антоненко Денис Олегович","Дизайн","живопись",null,null,null,null,0,0,0,0,0]
[null,186,2,189,"Худа Алексей Анатольевич","Живопись",null,null,null,null,null,0,0,0,0,0]
[null,187,2,190,"Киселева Анна Владимировна","Живопись","дизайн",null,null,null,null,0,0,0,0,0]
[null,188,2,191,"Семенова Мария Сергеевна","Дизайн",null,null,null,null,null,0,0,0,0,0]
[null,189,2,192,"Харченко Зинаида Юрьевна","Живопись","Дизайн",null,null,null,null,0,0,0,0,0]
[null,190,2,193,"Плахотина Ксения Сергеевна","Дизайн",null,null,null,null,null,0,0,0,0,0]

{"sheet":"Лист2","index":1,"n_rows":119,"n_cols":8,"rows_kept":119,"cut":false,"hidden":false,"merged":[]}
["   Р Е З У Л Ь Т А Т Ы"]
["ВСТУПИТЕЛЬНЫХ  ЭКЗАМЕНОВ  по основной специальности «Дизайн»"]
["    2015-2016 учебный год"]
["1 поток"]
[null,"Основная специаль-ность","Дизайн"]
[null,"№ экз. листа","ФИО","Рейтинг \nрисунок","Рейтинг \nживопись","Рейтинг \nкомпозиция","Рейтинг \nОПК","Общий \nрейтинг"]
[null,"№ экз. листа","ФИО","Рейтинг \nрисунок","Рейтинг \nживопись","Рейтинг \nкомпозиция","Рейтинг \nОПК","Сумма по полю Общий "]
[null,80,"Лазарева Снежана Валерьевна",95,90,100,100,385]
[null,13,"Шмигирева Елизавета Сергеевна",90,100,85,100,375]
[null,92,"Рыжевалова Наталья Олеговна",85,95,85,100,365]
[null,35,"Миронова Дарья Евгеньевна",80,90,100,95,365]
[null,147,"Шмидт Милана Аделвахетиковна",85,100,95,85,365]
[null,97,"Дмитриева Любовь Эдуардовна",80,90,90,100,360]
[null,71,"Петухова Полина Дмитриевна",85,90,80,100,355]
[null,38,"Кузьминых Кристина Андреевна",85,85,85,100,355]
[null,121,"Варданян Рузанна Геворговна",85,85,80,85,335]
[null,81,"Николаевская Дарья Аркадьевна",80,80,90,85,335]
[null,135,"Косенко Анастасия Олеговна",85,80,85,85,335]
[null,107,"Барщ Артем Владимирович",70,85,80,100,335]
[null,75,"Филипченко Олеся Владимировна",85,85,80,85,335]
[null,65,"Лазарева Антонина Андреевна",75,95,85,80,335]
[null,4,"Щербакова Надежда Анатольевна",80,75,80,100,335]
[null,72,"Калмыков Дмитрий Васильевич",90,90,75,80,335]
[null,26,"Кунц Милослава Юрьевна",85,85,80,80,330]
[null,118,"Рябов Вячеслав Сергеевич",85,75,85,85,330]
[null,79,"Томилко Валерия Евгеньевна",80,75,90,85,330]
[null,106,"Затолокин Евгений Владимирович",85,80,80,80,325]
[null,15,"Лушникова Диана Вадимовна",70,80,80,90,320]
[null,53,"Василенко Татьяна Владимировна",75,80,85,80,320]
[null,34,"Ряполова Екатерина Евгеньевна",75,80,80,85,320]
[null,134,"Латыпова Ангелина Витальевна",80,80,70,85,315]
[null,138,"Демидюк Яна Валериевна",80,70,80,85,315]
[null,23,"Личманова Юлия Вячеславовна",85,70,70,90,315]
[null,96,"Сергеева Анастасия Дмитриевна",70,80,85,80,315]
[null,5,"Сапрыкина Ксения Дмитриевна",80,80,70,85,315]
[null,6,"Юзупкина Екатерина Дмитриевна",80,75,70,85,310]
[null,105,"Ларина Наталья Алексеевна",75,80,70,85,310]
[null,104,"Залепаев Вадим Дмитриевич",80,75,80,70,305]
[null,139,"Горева Надежда Александровна",80,85,70,70,305]
[null,19,"Черновский Антон Борисович",80,85,70,70,305]
[null,88,"Чуруксаева Ирина Степановна",85,70,65,85,305]
[null,36,"Азаревич Полина Романовна",70,75,70,85,300]
[null,91,"Капырина Дарья Сергеевна",75,80,70,75,300]
[null,113,"Коваленко Екатерина Анатольевна",70,70,75,85,300]
[null,33,"Завгородняя Дарья Андреевна",70,70,70,90,300]
[null,57,"Лубашева Вероника Вадимовна",65,85,65,85,300]
[null,16,"Хачко Ольга Игоревна",75,70,70,80,295]
[null,56,"Алмакаев Никита Алексеевич",70,70,70,85,295]
[null,82,"Крюкова Мария Александровна",75,70,65,85,295]
[null,115,"Воевода Дарья Андреевна",70,70,65,85,290]
[null,85,"Балашова Дарья Игоревна",70,70,65,85,290]
[null,87,"Горлушко Юлия Алексеевна",65,85,70,70,290]
[null,95,"Левкина Александра Александровна",65,70,85,70,290]
[null,129,"Денисов Никита Андреевич",65,70,75,80,290]
[null,120,"Киктева Юлия Владимировна",75,70,70,70,285]
[null,112,"Наумова Регина Константиновна",70,75,70,70,285]
[null,98,"Виноградова Светлана Вячеславовна",70,70,70,70,280]
[null,154,"Скоробогатова Ксения Руслановна",65,65,70,80,280]
[null,70,"Стецык Оксана Сергеевна",70,65,65,80,280]
[null,149,"Киселева Анна Сергеевна",70,70,70,70,280]
[null,30,"Герус Виталина Дмитриевна",65,70,70,70,275]
[null,99,"Виноградова Татьяна Вячеславовна",70,65,65,70,270]
[null,89,"Фролов Михаил Сергеевич",65,70,60,70,265]
[null,46,"Калугина Арина Геннадьевна",60,65,65,70,260]
[null,29,"Тур Анастасия Витальевна",65,65,60,70,260]
[null,90,"Галкина Дарья Ильинична",70,60,60,70,260]
[null,148,"Войцехович Яна Игоревна",65,60,60,70,255]
[null,124,"Егошина Устина Сергеевна",60,65,60,70,255]
[null,84,"Никифоровская Ксения Алексеевна",60,70,60,65,255]
[null,7,"Вакар Екатерина Петровна",60,60,60,70,250]
[null,1,"Сысоева Светлана Алексеевна",60,60,60,70,250]
[null,100,"Стукалова Олеся Сергеевна",60,65,60,60,245]
[null,114,"Тарасова Анастасия Владимировна",60,65,60,60,245]
[null,24,"Сорокина Анастасия Дмитриевна",65,60,60,60,245]
[null,94,"Данилова Арина Владиславовна",65,60,60,60,245]
[null,142,"Юкляевская Мария Михайловна",60,60,60,65,245]
[null,103,"Рогаль Евгения Владимировна",60,60,60,60,240]
[null,136,"Садковская Алина Игоревна",60,65,0,0,125]
[null,187,"Савкина Екатерина Дмитриевна",0,0,0,0,0]
[null,175,"Шавырина Арина Сергеевна",0,0,0,0,0]
[null,132,"Андерс Валерия Юрьевна",0,0,0,0,0]
[null,73,"Давронова Зарина Абчадовна",0,0,0,0,0]
[null,45,"Обухова Маргарита Дмитриевна",0,0,0,0,0]
[null,43,"Кончева Диана Романовна",0,0,0,0,0]
[null,164,"Герасимова Анна Алексеевна",0,0,0,0,0]
[null,166,"Фёдорова Злата Сергеевна",0,0,0,0,0]
[null,170,"Анискина Наталья Алексеевна",0,0,0,0,0]
[null,172,"Журавлёва Анастасия Сергкквна",0,0,0,0,0]
[null,27,"Гайнутдинов Сергей Андреевич",0,0,0,0,0]
[null,178,"Рыбаков Артём Константинович",0,0,0,0,0]
[null,180,"Щербак Юлия Александровна",0,0,0,0,0]
[null,183,"Ичетовкина Наталья Михайловна",0,0,0,0,0]
[null,185,"Денисов Иван Романович",0,0,0,0,0]
[null,140,"Шадрина Алина Дмитриевна",0,0,0,0,0]
[null,191,"Семенова Мария Сергеевна",0,0,0,0,0]
[null,193,"Плахотина Ксения Сергеевна",0,0,0,0,0]
[null,165,"Цуранов Денис Андреевич",0,0,0,0,0]
[null,49,"Дробышева Анастасия Андреевна",0,0,0,0,0]
[null,169,"Шадрин Валерий Сергеевич",0,0,0,0,0]
[null,145,"Другова Маргарита Сергеевна",0,0,0,0,0]
[null,171,"Погодяева Анастасия Сергеевна",0,0,0,0,0]
[null,108,"Волкова Ольга Андреевна",0,0,0,0,0]
[null,173,"Неганова Дарья Сергеевна",0,0,0,0,0]
[null,55,"Дунаева Анастасия Сергеевна",0,0,0,0,0]
[null,177,"Литвинова Ектерина Андреевна",0,0,0,0,0]
[null,109,"Макуха Мария Николаевна",0,0,0,0,0]
[null,179,"Золотарёва Анастасия Васильевна",0,0,0,0,0]
[null,150,"Кондратенко Антон Вадимович",0,0,0,0,0]
[null,181,"Мошегова Мария Владимировна",0,0,0,0,0]
[null,125,"Шайдулина Алена Эльбрусовна",0,0,0,0,0]
[null,184,"Агмадиани Лиана Омаровна",0,0,0,0,0]
[null,158,"Чепурнова Кристина Витальевна",0,0,0,0,0]
[null,186,"Черечеча Дарья Сергеевна",0,0,0,0,0]
[null,159,"Черных Александра Григорьевна",0,0,0,0,0]
[null,188,"Антоненко Денис Олегович",0,0,0,0,0]
[null,160,"Иванова Елизавета Сергеевна",0,0,0,0,0]
[null,126,"Петухова Юлия Борисовна",0,0,0,0,0]
[null,162,"Саженова Анастасия Викторовна",0,0,0,0,0]
[null,144,"Малышева Алина Дмитриевна",0,0,0,0,0]